[Event "CZE-ch U10 Open 2023"]
[Site "Teplice"]
[Date "2023.03.13"]
[Round "4.11"]
[White "Fadrny, Jonas"]
[Black "Broz, Pavel"]
[Result "1-0"]
[ECO "C50"]
[WhiteElo "1247"]
[BlackElo "1870"]
[Annotator "NA RC COMBH"]
[PlyCount "60"]
[EventDate "2023.03.09"]
[EventType "swiss"]
[EventCountry "CZE"]
[SourceTitle "playchess.com"]
[Source "ChessBase"]
[SourceQuality "1"]
[TimeControl "40/5400+30:1800+30"]

1. e4 {[%emt 0:00:04]} e5 {[%emt 0:00:39]} 2. Nf3 {[%emt 0:00:21]} Nc6 {[%emt 0:01:00]} 3. Bc4 {[%emt 0:00:43]} Nf6 {[%emt 0:04:02]} 4. d3 {[%emt 0:00:34]} Bc5 {[%emt 0:02:54]} 5. Be3 {[%emt 0:00:48]} Bb6 {[%emt 0:02:27]} 6. Nc3 {[%emt 0:01:04]} d6 {[%emt 0:03:44]} 7. Qd2 {[%emt 0:01:28]} Bd7 {[%emt 0:02:46]} 8. Bg5 {[%emt 0:03:42]} Be6 {[%emt 0:01:39]} 9. Nd5 {[%emt 0:02:44]} Bxd5 {[%emt 0:00:10]} 10. Bxd5 {[%emt 0:00:14]} Qe7 {[%emt 0:02:14]} 11. Nh4 {[%emt 0:05:00]} h6 {[%emt 0:00:32]} 12. Nf5 {[%emt 0:03:35]} Qf8 {[%emt 0:00:54]} 13. Bxf6 {[%emt 0:01:40]} gxf6 {[%emt 0:01:26]} 14. O-O-O {[%emt 0:02:29]} Rg8 {[%emt 0:01:59]} 15. g3 {[%emt 0:01:53]} Rg6 {[%emt 0:01:13]} 16. a4 {[%emt 0:03:17]} O-O-O {[%emt 0:00:12]} 17. Bxc6 {[%emt 0:00:25]} bxc6 {[%emt 0:00:17]} 18. a5 {[%emt 0:00:16]} Bc5 {[%emt 0:00:34]} 19. b4 {[%emt 0:00:22]} d5 {[%emt 0:00:19]} 20. bxc5 {[%emt 0:04:58]} Qxc5 {[%emt 0:00:18]} 21. Rde1 {[%emt 0:01:27]} Qa3+ {[%emt 0:01:56]} 22. Kd1 {[%emt 0:00:25]} dxe4 {[%emt 0:00:20]} 23. Rxe4 Qa1+ {[%emt 0:00:10]} 24. Qc1 {[%emt 0:01:48]} Qxa5 {[%emt 0:00:08]} 25. Ne7+ {[%emt 0:00:18]} Kd7 {[%emt 0:00:24]} 26. Nxg6 {[%emt 0:00:17]} fxg6 {[%emt 0:00:10]} 27. Qxh6 {[%emt 0:00:59]} Rb8 {[%emt 0:00:23]} 28. Ke2 {[%emt 0:03:37]} Qc3 {[%emt 0:03:11]} 29. Qg7+ {[%emt 0:00:38]} Ke6 {[%emt 0:00:24]} 30. Rc4 {[%emt 0:02:27]} Kd5 1-0

[Event "CZE-ch U10 Open 2023"]
[Site "Teplice"]
[Date "2023.03.14"]
[Round "5.1"]
[White "Velim, Vojtech"]
[Black "Filindash, Nikita"]
[Result "0-1"]
[ECO "D45"]
[WhiteElo "1369"]
[BlackElo "2021"]
[Annotator "TA"]
[PlyCount "100"]
[EventDate "2023.03.09"]
[EventType "swiss"]
[EventCountry "CZE"]
[SourceTitle "playchess.com"]
[Source "ChessBase"]
[SourceQuality "1"]
[TimeControl "40/5400+30:1800+30"]

{[%evp 11,100,11,25,0,0,0,0,0,19,-14,-19,-37,-30,-62,-77,-82,-83,-65,0,-49,-40,-79,-79,-82,-81,-113,-116,-140,-131,-140,-71,-68,-95,-219,-79,-83,-78,-79,-89,-118,-113,-115,-107,-123,-128,-136,-138,-138,-138,-141,-138,-160,-148,-224,-156,-226,-222,-237,-250,-243,-233,-241,-215,-402,-393,-368,-345,-341,-337,-342,-390,-537,-529,-476,-443,-386,-393,-779,-648,-772,-636,-831,-828,-791,-631,-711,-702,-29973,-29975,-29947,-6527]} 1. d4 {[%emt 0:00:08]} d5 {[%emt 0:00:07]} 2. c4 {[%emt 0:00:06]} e6 {[%emt 0:00:06]} 3. Nf3 {[%emt 0:00:25]} c6 {[%emt 0:00:09]} 4. e3 {[%emt 0:00:28]} Nf6 {[%emt 0:00:06]} 5. Qc2 {[%emt 0:02:08]} Nbd7 {[%emt 0:00:19][%cal Bb8d7,Bd7f8,Bf8g6][%mdl 32]} 6. Nc3 {[%emt 0:00:52]} Be7 {[%emt 0:02:36]} 7. cxd5 {[%emt 0:01:17] D45: Semi-Slav: 5 e3.} exd5 {[%emt 0:00:31]} 8. Bd3 {[%emt 0:01:48]} O-O {[%emt 0:01:28]} 9. O-O {[%emt 0:00:42] The position is equal.} Re8 {[%emt 0:00:18] [#]} 10. Nd2 $146 {[%emt 0:01:59]} ({Predecessor:} 10. a3 Nf8 11. b4 a6 12. h3 Bd6 13. Na4 Ne4 {½-½ Drazic,S (2406)-Sredojevic,I (2428) Novi Sad 04 2016 (1)}) 10... Nf8 {[%emt 0:00:14]} 11. Nb3 {[%emt 0:02:02]} Ng6 {[%emt 0:00:54]} 12. e4 {[%emt 0:01:35]} dxe4 {[%emt 0:00:25]} 13. Nxe4 {[%emt 0:00:26]} Nxe4 {[%emt 0:00:54]} 14. Bxe4 {[%emt 0:00:18]} Bf6 {[%emt 0:05:45]} ({Black should try} 14... Bd6 $15 15. g3 Bh3) 15. Rd1 {[%emt 0:10:08]} (15. Be3 $11) 15... Qe7 {[%emt 0:02:26]} 16. Bd3 {[%emt 0:04:25]} Bg4 {[%emt 0:10:49]} 17. f3 {[%emt 0:01:30]} Be6 {[%emt 0:01:13]} 18. Bf1 {[%emt 0:12:53]} Rad8 {[%emt 0:01:16]} 19. Bc4 {[%emt 0:03:00]} Bxc4 {[%emt 0:01:33]} 20. Qxc4 {[%emt 0:00:15]} Qe2 {[%emt 0:11:23] Repels Bd2} (20... Nh4 $142 {aiming for ...Qe2.} 21. Bf4 Nf5) 21. Qxe2 $17 {[%emt 0:01:40]} Rxe2 {[%emt 0:00:35]} 22. Rd2 {[%emt 0:03:15]} (22. Kf1 $17 Ree8 23. Bd2) 22... Rxd2 {[%emt 0:02:56]} (22... Re1+ $19 23. Kf2 Rde8) 23. Bxd2 {[%emt 0:00:16]} Bxd4+ {[%emt 0:03:14]} 24. Nxd4 {[%emt 0:00:10]} Rxd4 $19 {[%emt 0:00:05][%mdl 4096] Endgame KRB-KRN} 25. Bc3 {[%emt 0:00:09]} Rd7 {[%emt 0:00:39]} 26. Re1 {[%emt 0:00:32] [#] And now Re8+ would win.} f6 {[%emt 0:00:45]} 27. g3 {[%emt 0:01:09]} Kf7 {[%emt 0:00:28]} 28. f4 {[%emt 0:01:22]} Ne7 {[%emt 0:00:24]} 29. Kf2 {[%emt 0:01:31]} Nd5 {[%emt 0:00:19]} 30. Bd2 {[%emt 0:01:55]} c5 {[%emt 0:12:20]} 31. a3 {[%emt 0:05:36]} Nb6 {[%emt 0:02:48]} 32. Ke2 {[%emt 0:05:02]} (32. Re2 $17) 32... Re7+ {[%emt 0:01:02]} 33. Kd1 {[%emt 0:00:12]} (33. Kd3 $17) 33... Rxe1+ {[%emt 0:00:15]} 34. Kxe1 {[%emt 0:01:17] KB-KN} Ke6 {[%emt 0:00:56]} 35. Ke2 {[%emt 0:01:10]} Kd5 {[%emt 0:01:20]} 36. Kd3 {[%emt 0:01:32]} c4+ {[%emt 0:01:23]} 37. Ke3 $2 {[%emt 0:00:17]} (37. Kc3) 37... Na4 {[%emt 0:00:09]} 38. Bc1 {[%emt 0:01:22]} Nc5 {[%emt 0:00:09]} 39. Bd2 {[%emt 0:00:40]} Ne4 {[%emt 0:02:10] Threatens to win with ...Nxd2.} 40. Be1 {[%emt 0:01:37]} f5 {[%emt 0:01:33]} 41. a4 {[%emt 0:31:36]} Nc5 {[%emt 0:32:07]} 42. Bc3 {[%emt 0:02:28]} g6 {[%emt 0:00:09]} (42... Nxa4 $2 {is the wrong capture.} 43. Bxg7 b5 44. Kd2 $19) 43. a5 {[%emt 0:02:07]} b6 {[%emt 0:00:34]} 44. axb6 $2 {[%emt 0:01:05]} (44. Ke2 bxa5 45. Ke3) 44... axb6 {[%emt 0:00:01][%cal Ba7b6,Bb6b5][%mdl 32]} 45. h3 {[%emt 0:01:14]} Ne4 {[%emt 0:00:27][%cal Oe4c3] White must now prevent ...Nxc3!} 46. Bd4 {[%emt 0:01:21]} b5 {[%emt 0:00:34][%cal Ob5b4]} ({Not} 46... Nxg3 47. Bxb6 Ne4 48. Bc7 $17) 47. g4 {[%emt 0:00:17]} Nf2 {[%emt 0:00:27][%mdl 64] [#] Strongly threatening ...Nd1+. Double Attack} 48. gxf5 {[%emt 0:02:09]} gxf5 {[%emt 0:00:07] ( -> ...Nd1+)} ({Inferior is} 48... Nxh3 49. fxg6 hxg6 50. Bg7 $15) 49. Bb6 {[%emt 0:01:02]} Nd1+ {[%emt 0:00:21]} 50. Kf3 {[%emt 0:01:32]} Nxb2 {[%emt 0:00:08] Weighted Error Value: White=0.60/Black=0.19 (very precise)} 0-1

[Event "CZE-ch U10 Open 2023"]
[Site "Teplice"]
[Date "2023.03.14"]
[Round "5.2"]
[White "Kolar, Edvard"]
[Black "Kozusnik, Jan"]
[Result "0-1"]
[ECO "C55"]
[WhiteElo "1518"]
[BlackElo "1286"]
[Annotator "NA RC COMBH"]
[PlyCount "90"]
[EventDate "2023.03.09"]
[EventType "swiss"]
[EventCountry "CZE"]
[SourceTitle "playchess.com"]
[Source "ChessBase"]
[SourceQuality "1"]
[TimeControl "40/5400+30:1800+30"]

1. e4 {[%emt 0:00:02]} e5 {[%emt 0:00:06]} 2. Nf3 {[%emt 0:00:04]} Nc6 {[%emt 0:00:08]} 3. Bc4 {[%emt 0:00:03]} Nf6 {[%emt 0:00:25]} 4. O-O {[%emt 0:00:13]} Bc5 {[%emt 0:00:37]} 5. b4 {[%emt 0:00:05]} Bxb4 {[%emt 0:00:16]} 6. c3 {[%emt 0:00:06]} Be7 {[%emt 0:00:08]} 7. d4 {[%emt 0:00:16]} exd4 {[%emt 0:01:13]} 8. e5 {[%emt 0:01:01]} Ng4 {[%emt 0:01:00]} 9. cxd4 {[%emt 0:00:30]} d6 {[%emt 0:00:59]} 10. h3 {[%emt 0:01:23]} Nh6 {[%emt 0:00:52]} 11. Bxh6 {[%emt 0:00:16]} gxh6 {[%emt 0:00:14]} 12. exd6 {[%emt 0:01:04]} Qxd6 {[%emt 0:00:39]} 13. Qb3 {[%emt 0:05:49]} Qg6 {[%emt 0:05:20]} 14. Ne5 {[%emt 0:05:26]} Nxe5 {[%emt 0:00:38]} 15. dxe5 {[%emt 0:00:19]} Rg8 {[%emt 0:00:55]} 16. Qf3 {[%emt 0:04:34]} c6 {[%emt 0:04:56]} 17. Nc3 {[%emt 0:03:23]} Bf5 {[%emt 0:00:46]} 18. Rad1 {[%emt 0:01:34]} Bb4 {[%emt 0:02:29]} 19. Ne2 {[%emt 0:06:03]} Bc5 {[%emt 0:08:44]} 20. Ng3 {[%emt 0:09:31]} Qxg3 {[%emt 0:04:46]} 21. Bxf7+ {[%emt 0:03:26]} Ke7 {[%emt 0:05:42]} 22. Rd7+ {[%emt 0:04:51]} Kxd7 {[%emt 0:02:15]} 23. Qxf5+ {[%emt 0:01:19]} Kc7 {[%emt 0:00:39]} 24. Bxg8 {[%emt 0:00:25]} Qxg8 {[%emt 0:01:12]} 25. e6 {[%emt 0:00:32]} Be7 {[%emt 0:00:49]} 26. Rd1 {[%emt 0:00:40]} Rd8 {[%emt 0:01:23]} 27. Rb1 {[%emt 0:01:22]} Rd6 {[%emt 0:03:35]} 28. Qa5+ {[%emt 0:00:33]} Kb8 {[%emt 0:04:37]} 29. Qa6 {[%emt 0:00:24]} Qc8 {[%emt 0:00:17]} 30. a4 {[%emt 0:00:37]} Rd1+ {[%emt 0:00:32]} 31. Rxd1 {[%emt 0:00:18]} bxa6 {[%emt 0:00:16]} 32. Rb1+ {[%emt 0:00:02]} Kc7 {[%emt 0:00:13]} 33. Rd1 {[%emt 0:00:06]} Qxe6 {[%emt 0:00:19]} 34. a5 {[%emt 0:00:24]} Bb4 {[%emt 0:00:31]} 35. h4 Bxa5 {[%emt 0:00:12]} 36. h5 {[%emt 0:00:15]} Bb6 {[%emt 0:00:16]} 37. g3 {[%emt 0:00:13]} Qe2 {[%emt 0:00:11]} 38. Rf1 {[%emt 0:00:14]} Qxh5 {[%emt 0:00:27]} 39. g4 {[%emt 0:00:15]} Qxg4+ {[%emt 0:00:14]} 40. Kh1 {[%emt 0:00:05]} Qh3+ {[%emt 0:00:11]} 41. Kg1 {[%emt 0:30:03]} Qxf1+ {[%emt 0:30:53]} 42. Kh2 {[%emt 0:00:30]} Qxf2+ {[%emt 0:00:10]} 43. Kh3 {[%emt 0:00:03]} Qg1 {[%emt 0:00:26]} 44. Kh4 Bf2+ {[%emt 0:00:16]} 45. Kh5 {[%emt 0:00:08]} Qg5# {[%emt 0:00:08]} 0-1

[Event "CZE-ch U10 Open 2023"]
[Site "Teplice"]
[Date "2023.03.14"]
[Round "5.3"]
[White "Trejbal, Jindrich"]
[Black "Lutskiy, Mikhail"]
[Result "0-1"]
[ECO "C01"]
[WhiteElo "1937"]
[BlackElo "1150"]
[Annotator "TA"]
[PlyCount "86"]
[EventDate "2023.03.09"]
[EventType "swiss"]
[EventCountry "CZE"]
[SourceTitle "playchess.com"]
[Source "ChessBase"]
[SourceQuality "1"]
[TimeControl "40/5400+30:1800+30"]

{[%evp 9,86,7,31,2,21,6,33,28,28,22,47,33,42,35,45,34,40,39,56,18,53,47,52,0,0,0,0,0,139,137,315,231,230,231,226,-99,-87,-98,-13,-81,-26,-116,-154,-225,-230,-275,-207,-202,-193,-197,-180,-187,-198,-196,-120,-193,-184,-641,-630,-624,-583,-613,-579,-648,-644,-643,-640,-682,-658,-661,-655,-772,-767,-899,-838,-918,-899,-885,-842]} 1. e4 {[%emt 0:00:01]} e6 {[%emt 0:00:06]} 2. d4 {[%emt 0:00:16]} d5 {[%emt 0:00:06]} 3. exd5 {[%emt 0:01:09]} exd5 {[%emt 0:00:09]} 4. Bd3 {[%emt 0:00:18]} Nc6 {[%emt 0:00:19]} 5. c3 {[%emt 0:01:16]} Nf6 {[%emt 0:00:11]} 6. h3 {C01: French: Exchange Variation.} Be6 {[%emt 0:00:29]} 7. Nf3 {[%emt 0:02:05]} Be7 {[%emt 0:00:22]} 8. Bf4 {[%emt 0:02:12] White is slightly better.} O-O {[%emt 0:00:17]} 9. O-O {[%emt 0:01:43]} h6 {[%emt 0:00:12]} 10. Re1 {[%emt 0:04:05] [#]} Bd6 $146 {[%emt 0:01:50]} ({Predecessor:} 10... Qd7 11. Nbd2 Rae8 12. Qc2 Qc8 13. Re2 Bd6 14. Bxd6 cxd6 15. Ng5 hxg5 16. b4 a6 {0-1 Bojand,M (1121)-Reisi,A (1580) IRI-ch U14 Chess.com INT 2021 (3)}) 11. Ne5 {[%emt 0:01:50]} Ne7 {[%emt 0:01:08]} 12. Qe2 {[%emt 0:02:50]} a6 {[%emt 0:03:27]} 13. Nd2 {[%emt 0:04:01]} Re8 {[%emt 0:01:45]} 14. Ndf3 {[%emt 0:01:52]} Nc8 {[%emt 0:03:05]} 15. Qd2 {[%emt 0:03:34]} Nb6 {[%emt 0:01:28] [#]} 16. Bxh6 {[%emt 0:02:21]} gxh6 $11 {[%emt 0:02:41]} 17. Qxh6 {[%emt 0:00:09] aiming for Ng5.} Bf8 $1 {[%emt 0:00:27]} 18. Qh4 {[%emt 0:06:48] Strongly threatening Ng5.} ({Much worse is} 18. Qg5+ Bg7 $17) 18... Bg7 {[%emt 0:01:21]} (18... Ne4 $1 $11) 19. Ng5 $1 $16 {[%emt 0:01:06][%mdl 1024] White has strong compensation.} Kf8 $2 {[%emt 0:03:54] [#]} (19... Nc4 $16 {was worth a try.}) 20. Ng6+ $1 {[%emt 0:01:18][%mdl 576] Deflection} Kg8 {[%emt 0:02:03]} 21. Nf4 {[%emt 0:02:41]} Bd7 {[%emt 0:02:12]} 22. Nh7 $2 {[%emt 0:09:41]} (22. Re5 $18) 22... Ne4 $17 {[%emt 0:02:15]} 23. Qh5 {[%emt 0:03:57]} c6 {[%emt 0:03:02]} (23... Bc6 $17 24. h4 Qd6) 24. Bxe4 {[%emt 0:01:39]} (24. Re3 $1 $11) 24... dxe4 {[%emt 0:00:45]} (24... Rxe4 $17 25. Rxe4 dxe4) 25. Ng5 {[%emt 0:01:59]} (25. Re3 $1 $11 {keeps the balance.} Nd5 26. Nxd5 cxd5 27. Rg3 (27. Ng5 $2 Qf6 $19)) 25... Qf6 {[%emt 0:03:32]} 26. g3 {[%emt 0:07:39] [#]} (26. Qh7+ $17 Kf8 27. Qh4) 26... Bf5 $1 $19 {[%emt 0:00:44]} 27. Re3 {[%emt 0:02:00]} Nc4 {[%emt 0:01:17]} 28. Re2 {[%emt 0:00:19]} Nd6 {[%emt 0:03:01]} 29. Rae1 {[%emt 0:00:19]} Qh6 {[%emt 0:01:55] White must now prevent ...f6.} 30. g4 {[%emt 0:03:07]} Qxh5 {[%emt 0:00:59]} 31. Nxh5 {[%emt 0:01:51] [#] Excellent horsemanship.} Bg6 {[%emt 0:03:13]} (31... f6 $1 $19 {Threatens to win with ...Bg6.} 32. gxf5 fxg5) 32. Nf4 {[%emt 0:00:32]} (32. Ng3 $17) 32... Bh6 {[%emt 0:03:28]} 33. Nxe4 {[%emt 0:00:58]} (33. h4) 33... Bxe4 {[%emt 0:00:31] Black is clearly winning.} 34. Nh5 {[%emt 0:00:10]} Bg7 {[%emt 0:00:55] Dodges Nf6+} 35. Ng3 {[%emt 0:00:43][%cal Rg3e4]} Bg6 {[%emt 0:00:17]} 36. Re7 {[%emt 0:00:10]} Rxe7 {[%emt 0:01:17]} 37. Rxe7 {[%emt 0:00:12]} Rd8 {[%emt 0:00:21]} 38. g5 Bb1 {[%cal Bg6b1,Bb1a2,Ba2e6][%mdl 32]} 39. a3 {[%emt 0:01:20]} Ba2 {[%emt 0:01:34]} 40. f4 {[%emt 0:01:20]} Be6 {[%emt 0:00:21]} 41. h4 {[%emt 0:30:32]} Rc8 {[%emt 0:30:50]} 42. Nh5 {[%emt 0:04:25]} Bf8 {[%emt 0:00:39]} 43. Nf6+ {[%emt 0:00:37]} Kh8 {[%emt 0:00:16] Weighted Error Value: White=0.52/Black=0.29 (precise)} 0-1

[Event "CZE-ch U10 Open 2023"]
[Site "Teplice"]
[Date "2023.03.14"]
[Round "5.4"]
[White "Kroulik, Stepan"]
[Black "Vo, Daniel"]
[Result "1-0"]
[ECO "B50"]
[WhiteElo "1228"]
[BlackElo "1440"]
[Annotator "NA RC COMBH"]
[PlyCount "89"]
[EventDate "2023.03.09"]
[EventType "swiss"]
[EventCountry "CZE"]
[SourceTitle "playchess.com"]
[Source "ChessBase"]
[SourceQuality "1"]
[TimeControl "40/5400+30:1800+30"]

1. e4 {[%emt 0:00:04]} c5 {[%emt 0:10:05]} 2. Nf3 {[%emt 0:00:12]} d6 {[%emt 0:00:07]} 3. c3 {[%emt 0:00:10]} Nf6 {[%emt 0:00:14]} 4. Be2 {[%emt 0:00:25]} Nc6 {[%emt 0:00:13]} 5. d4 {[%emt 0:00:32]} Nxe4 {[%emt 0:00:33]} 6. d5 {[%emt 0:00:24]} Nb8 {[%emt 0:00:31]} 7. Qa4+ {[%emt 0:00:16]} Nd7 {[%emt 0:00:30]} 8. Qxe4 {[%emt 0:00:22]} Nf6 {[%emt 0:00:28]} 9. Qa4+ {[%emt 0:00:57]} Bd7 {[%emt 0:00:09]} 10. Qb3 {[%emt 0:00:31]} Rb8 {[%emt 0:00:47]} 11. a4 {[%emt 0:00:50]} g6 {[%emt 0:00:14]} 12. O-O {[%emt 0:01:27]} Bg7 {[%emt 0:01:42]} 13. Rd1 {[%emt 0:02:15]} O-O {[%emt 0:00:30]} 14. Bf4 {[%emt 0:02:13]} e5 {[%emt 0:01:08]} 15. dxe6 {[%emt 0:00:51]} Bxe6 {[%emt 0:00:15]} 16. Qc2 {[%emt 0:00:27]} Ne8 {[%emt 0:00:47]} 17. Qd2 {[%emt 0:01:07]} Qb6 {[%emt 0:01:23]} 18. a5 {[%emt 0:02:13]} Qc6 {[%emt 0:00:31]} 19. Na3 {[%emt 0:02:32]} Rd8 {[%emt 0:01:38]} 20. Bh6 {[%emt 0:01:57]} d5 {[%emt 0:01:32]} 21. Bxg7 {[%emt 0:00:43]} Nxg7 {[%emt 0:00:19]} 22. Nc2 {[%emt 0:04:37]} Nf5 {[%emt 0:01:35]} 23. Ne3 {[%emt 0:01:05]} Rfe8 {[%emt 0:00:51]} 24. Nxf5 {[%emt 0:00:39]} Bxf5 {[%emt 0:00:10]} 25. Bd3 {[%emt 0:00:45]} Bg4 {[%emt 0:00:15]} 26. Qf4 {[%emt 0:01:21]} Bxf3 {[%emt 0:00:34]} 27. Qxf3 {[%emt 0:00:13]} c4 {[%emt 0:00:20]} 28. Bc2 {[%emt 0:00:33]} Re6 {[%emt 0:01:50]} 29. Ba4 {[%emt 0:00:53]} Qd6 {[%emt 0:01:40]} 30. Re1 {[%emt 0:01:24]} Rf6 {[%emt 0:00:53]} 31. Qg3 {[%emt 0:00:35]} Qc5 {[%emt 0:01:02]} 32. Re8+ {[%emt 0:01:07]} Rxe8 {[%emt 0:00:15]} 33. Bxe8 {[%emt 0:00:12]} Qe7 {[%emt 0:00:27]} 34. Ba4 {[%emt 0:01:15]} Re6 {[%emt 0:00:53]} 35. h3 {[%emt 0:00:40]} Re2 {[%emt 0:01:26]} 36. b3 {[%emt 0:01:45]} cxb3 {[%emt 0:02:38]} 37. Bxb3 {[%emt 0:00:25]} Rd2 {[%emt 0:01:06]} 38. Qe3 {[%emt 0:01:19]} Qxe3 {[%emt 0:01:50]} 39. fxe3 {[%emt 0:00:06]} Rd3 {[%emt 0:00:50]} 40. Rd1 {[%emt 0:01:17]} Rxe3 {[%emt 0:00:10]} 41. Bxd5 {[%emt 0:30:27]} Rxc3 {[%emt 0:30:28]} 42. Bxb7 Rc7 {[%emt 0:04:39]} 43. a6 {[%emt 0:00:57]} Kg7 {[%emt 0:02:29]} 44. Rd8 {[%emt 0:00:38]} Kf6 {[%emt 0:00:48]} 45. Ra8 {[%emt 0:00:09]} 1-0

[Event "CZE-ch U10 Open 2023"]
[Site "Teplice"]
[Date "2023.03.14"]
[Round "5.5"]
[White "Moravec, Rene"]
[Black "Gernert, Tomas"]
[Result "1/2-1/2"]
[ECO "A10"]
[WhiteElo "1216"]
[BlackElo "1362"]
[Annotator "NA RC COMBH"]
[PlyCount "56"]
[EventDate "2023.03.09"]
[EventType "swiss"]
[EventCountry "CZE"]
[SourceTitle "playchess.com"]
[Source "ChessBase"]
[SourceQuality "1"]
[TimeControl "40/5400+30:1800+30"]

1. c4 {[%emt 0:00:06]} d5 {[%emt 0:00:05]} 2. cxd5 {[%emt 0:00:40]} Nf6 {[%emt 0:00:06]} 3. d4 {[%emt 0:01:14]} Nxd5 {[%emt 0:03:03]} 4. e4 {[%emt 0:00:13]} Nf6 {[%emt 0:00:05]} 5. Nc3 {[%emt 0:00:46]} Nc6 {[%emt 0:01:04]} 6. Nf3 {[%emt 0:01:04]} e6 {[%emt 0:00:11]} 7. Be2 {[%emt 0:01:07]} Bb4 {[%emt 0:01:38]} 8. O-O {[%emt 0:00:34]} Bxc3 {[%emt 0:02:25]} 9. bxc3 {[%emt 0:00:54]} Nxe4 {[%emt 0:00:15]} 10. Bd3 {[%emt 0:01:28]} Nxc3 {[%emt 0:00:35]} 11. Qc2 {[%emt 0:00:43]} Nd5 {[%emt 0:01:46]} 12. Re1 {[%emt 0:00:23]} O-O {[%emt 0:00:49]} 13. a3 {[%emt 0:01:22]} h6 {[%emt 0:00:31]} 14. Bd2 {[%emt 0:06:36]} b6 {[%emt 0:03:43]} 15. Qxc6 {[%emt 0:01:13]} Bd7 16. Qc1 {[%emt 0:01:01]} Qf6 {[%emt 0:06:47]} 17. Re4 {[%emt 0:07:33]} c5 {[%emt 0:02:52]} 18. Ne5 {[%emt 0:02:54]} Rfd8 {[%emt 0:02:40]} 19. Rg4 {[%emt 0:00:29]} Kf8 {[%emt 0:04:41]} 20. Nxd7+ Rxd7 {[%emt 0:00:15]} 21. dxc5 {[%emt 0:01:57]} Rc8 {[%emt 0:00:33]} 22. a4 {[%emt 0:04:49]} Rxc5 {[%emt 0:01:30]} 23. Qa3 {[%emt 0:00:32]} Nc3 {[%emt 0:04:42]} 24. Bxc3 {[%emt 0:02:22]} Rxd3 {[%emt 0:00:48]} 25. Bxf6 {[%emt 0:03:07]} Rxa3 {[%emt 0:02:00]} 26. Bxg7+ Ke8 27. Bb2 Rxa1+ 28. Bxa1 Rc1# 1/2-1/2

[Event "CZE-ch U10 Open 2023"]
[Site "Teplice"]
[Date "2023.03.14"]
[Round "5.7"]
[White "Bucek, Vit"]
[Black "Skoloud, Josef"]
[Result "0-1"]
[ECO "C55"]
[WhiteElo "1198"]
[BlackElo "1090"]
[Annotator "NA RC COMBH"]
[PlyCount "96"]
[EventDate "2023.03.09"]
[EventType "swiss"]
[EventCountry "CZE"]
[SourceTitle "playchess.com"]
[Source "ChessBase"]
[SourceQuality "1"]
[TimeControl "40/5400+30:1800+30"]

1. e4 {[%emt 0:00:03]} e5 {[%emt 0:00:05]} 2. Nf3 {[%emt 0:00:05]} Nc6 {[%emt 0:00:05]} 3. d4 {[%emt 0:00:04]} exd4 {[%emt 0:00:23]} 4. Bc4 {[%emt 0:00:05]} Nf6 {[%emt 0:00:37]} 5. e5 {[%emt 0:00:06]} Ng4 {[%emt 0:01:07]} 6. O-O {[%emt 0:00:38]} Be7 {[%emt 0:00:21]} 7. Re1 {[%emt 0:00:22]} O-O {[%emt 0:00:34]} 8. h3 {[%emt 0:00:20]} Nh6 {[%emt 0:00:42]} 9. Bxh6 {[%emt 0:01:21]} gxh6 {[%emt 0:00:12]} 10. Nxd4 {[%emt 0:00:49]} Kh8 {[%emt 0:02:53]} 11. Nc3 Bh4 {[%emt 0:16:47]} 12. Qd2 {[%emt 0:16:13]} f6 {[%emt 0:05:57]} 13. exf6 {[%emt 0:07:39]} Qxf6 {[%emt 0:01:34]} 14. Nf3 {[%emt 0:03:02]} d6 {[%emt 0:04:07]} 15. b3 {[%emt 0:04:34]} Bxf2+ {[%emt 0:10:18]} 16. Kxf2 {[%emt 0:03:11]} Bxh3 {[%emt 0:00:12]} 17. Re3 {[%emt 0:07:42]} Bg4 {[%emt 0:01:21]} 18. Rae1 {[%emt 0:05:38]} Ne5 {[%emt 0:01:47]} 19. Be2 {[%emt 0:02:27]} Bxf3 {[%emt 0:02:02]} 20. Bxf3 {[%emt 0:00:25]} Ng4+ {[%emt 0:00:08]} 21. Kf1 {[%emt 0:03:21]} Nxe3+ {[%emt 0:02:11]} 22. Rxe3 {[%emt 0:00:46]} c6 {[%emt 0:00:56]} 23. Ne4 {[%emt 0:03:14]} Qg6 {[%emt 0:03:14]} 24. Qxd6 {[%emt 0:01:18]} Qg7 {[%emt 0:01:26]} 25. Qa3 {[%emt 0:03:03]} Qd4 {[%emt 0:01:28]} 26. Qc1 {[%emt 0:01:11]} Rae8 {[%emt 0:00:51]} 27. Ke2 {[%emt 0:00:34]} Rf7 {[%emt 0:05:46]} 28. Bh5 {[%emt 0:02:12]} Rxe4 {[%emt 0:02:55]} 29. Bxf7 {[%emt 0:00:17]} Rg4 {[%emt 0:00:58]} 30. Qf1 {[%emt 0:02:08]} Rf4 {[%emt 0:01:17]} 31. Rg3 {[%emt 0:04:21]} Re4+ {[%emt 0:03:01]} 32. Re3 {[%emt 0:01:37]} Rxe3+ {[%emt 0:01:54]} 33. Kf2 {[%emt 0:00:11]} Qd2+ {[%emt 0:00:35]} 34. Kg1 {[%emt 0:00:45]} Re1 {[%emt 0:00:13]} 35. Bc4 {[%emt 0:01:04]} Rxf1+ {[%emt 0:00:23]} 36. Kxf1 {[%emt 0:00:12]} Qxc2 {[%emt 0:00:13]} 37. a4 {[%emt 0:00:30]} a6 {[%emt 0:00:20]} 38. a5 {[%emt 0:00:20]} Qc3 {[%emt 0:00:11]} 39. g4 {[%emt 0:00:13]} Qd4 {[%emt 0:00:31]} 40. Bxa6 {[%emt 0:00:17]} bxa6 {[%emt 0:00:16]} 41. b4 {[%emt 0:30:09]} Qd2 {[%emt 0:30:12]} 42. b5 {[%emt 0:00:13]} cxb5 {[%emt 0:00:17]} 43. Kg1 {[%emt 0:00:12]} Kg7 {[%emt 0:00:05]} 44. Kh1 {[%emt 0:00:24]} Kg6 {[%emt 0:00:05]} 45. Kg1 {[%emt 0:00:12]} Kg5 {[%emt 0:00:07]} 46. Kh1 {[%emt 0:00:09]} Kf4 {[%emt 0:00:10]} 47. g5 {[%emt 0:00:19]} Kg3 {[%emt 0:00:09]} 48. gxh6 {[%emt 0:00:09]} Qg2# {[%emt 0:00:12]} 0-1

[Event "CZE-ch U10 Open 2023"]
[Site "Teplice"]
[Date "2023.03.14"]
[Round "5.10"]
[White "Broz, Pavel"]
[Black "Fadrny, Jachym"]
[Result "0-1"]
[ECO "B40"]
[WhiteElo "1870"]
[BlackElo "1279"]
[Annotator "NA RC COMBH"]
[PlyCount "38"]
[EventDate "2023.03.09"]
[EventType "swiss"]
[EventCountry "CZE"]
[SourceTitle "playchess.com"]
[Source "ChessBase"]
[SourceQuality "1"]
[TimeControl "40/5400+30:1800+30"]

1. e4 {[%emt 0:00:13]} c5 {[%emt 0:00:11]} 2. Nf3 {[%emt 0:01:22]} e6 {[%emt 0:00:12]} 3. d4 {[%emt 0:01:15]} cxd4 {[%emt 0:00:50]} 4. c3 {[%emt 0:02:53]} dxc3 {[%emt 0:01:07]} 5. Nxc3 {[%emt 0:01:05]} Nc6 {[%emt 0:00:36]} 6. Bf4 {[%emt 0:01:58]} Bb4 {[%emt 0:01:38]} 7. Qb3 {[%emt 0:04:59]} h6 {[%emt 0:02:26]} 8. Be2 {[%emt 0:02:51]} Nf6 {[%emt 0:01:15]} 9. h3 {[%emt 0:02:21]} Nxe4 {[%emt 0:00:59]} 10. Ne5 {[%emt 0:00:33]} Bxc3+ {[%emt 0:05:58]} 11. bxc3 {[%emt 0:00:12]} Qf6 {[%emt 0:04:21]} 12. Nxc6 {[%emt 0:00:54]} Qxf4 {[%emt 0:01:39]} 13. Nd4 {[%emt 0:00:27]} Qxf2+ {[%emt 0:02:17]} 14. Kd1 {[%emt 0:00:08]} Qe3 {[%emt 0:00:46]} 15. Qc2 {[%emt 0:00:17]} Nf2+ {[%emt 0:00:35]} 16. Ke1 {[%emt 0:00:23]} Nxh1 {[%emt 0:00:17]} 17. Rd1 {[%emt 0:00:36]} Ng3 {[%emt 0:01:26]} 18. Rd3 {[%emt 0:00:11]} Qg1+ {[%emt 0:00:26]} 19. Kd2 {[%emt 0:00:11]} Ne4# 0-1